[Event "Late-Titled-Tuesday-Blitz-September-12-2023"]
[Site "Chess.com"]
[Date "2023.09.12"]
[Round "6"]
[White "Garmendiarov"]
[Black "guillembaches"]
[Result "0-1"]
[WhiteElo "2349"]
[BlackElo "2519"]
[TimeControl "180+1"]
[EndTime "15:02:34 PDT"]
[Termination "guillembaches won by resignation"]

1. e4 {[%clk 0:03:00.9]} 1... c5 {[%clk 0:02:59.6]} 2. Nf3 {[%clk 0:03:00.7]}
2... d6 {[%clk 0:03:00.2]} 3. d4 {[%clk 0:03:01.1]} 3... cxd4 {[%clk 0:03:01.1]}
4. Nxd4 {[%clk 0:03:02]} 4... Nf6 {[%clk 0:03:01.7]} 5. Nc3 {[%clk 0:03:02.7]}
5... Nc6 {[%clk 0:03:02.3]} 6. Bg5 {[%clk 0:03:02.2]} 6... e6 {[%clk 0:03:02.5]}
7. Qd2 {[%clk 0:03:02.6]} 7... h6 {[%clk 0:03:03.1]} 8. Bh4 {[%clk 0:02:37.2]}
8... Nxe4 {[%clk 0:03:02.9]} 9. Bxd8 {[%clk 0:02:12.5]} 9... Nxd2 {[%clk
0:03:01.5]} 10. Nxc6 {[%clk 0:02:10.5]} 10... bxc6 {[%clk 0:03:00.7]} 11. Bh4
{[%clk 0:01:50]} 11... Nxf1 {[%clk 0:02:59.7]} 12. Rxf1 {[%clk 0:01:48.9]} 12...
Ba6 {[%clk 0:02:58.5]} 13. Rg1 {[%clk 0:01:46]} 13... d5 {[%clk 0:02:56.9]} 14.
O-O-O {[%clk 0:01:44.5]} 14... Bc5 {[%clk 0:02:53.8]} 15. Rge1 {[%clk
0:01:32.2]} 15... Be7 {[%clk 0:02:42.6]} 16. Bxe7 {[%clk 0:01:28.9]} 16... Kxe7
{[%clk 0:02:42.5]} 17. Na4 {[%clk 0:01:18.8]} 17... Kd6 {[%clk 0:02:39.3]} 18.
b4 {[%clk 0:01:17.8]} 18... Bc4 {[%clk 0:02:33.1]} 19. Kb2 {[%clk 0:01:11.6]}
19... Rhb8 {[%clk 0:02:25.9]} 20. Kc3 {[%clk 0:01:08.3]} 20... a5 {[%clk
0:02:22.5]} 21. Rb1 {[%clk 0:00:49.2]} 21... axb4+ {[%clk 0:02:07.3]} 22. Rxb4
{[%clk 0:00:50.1]} 22... Rxb4 {[%clk 0:02:03.9]} 23. Kxb4 {[%clk 0:00:51]} 23...
c5+ {[%clk 0:01:58.7]} 24. Nxc5 {[%clk 0:00:41.3]} 24... Rb8+ {[%clk 0:01:56.4]}
25. Kc3 {[%clk 0:00:40.1]} 25... Kxc5 {[%clk 0:01:56.5]} 26. a4 {[%clk
0:00:38.2]} 26... d4+ {[%clk 0:01:49]} 27. Kd2 {[%clk 0:00:38.5]} 27... f6
{[%clk 0:01:46.4]} 28. a5 {[%clk 0:00:34.8]} 28... e5 {[%clk 0:01:43.9]} 29. f4
{[%clk 0:00:31.1]} 29... Kd5 {[%clk 0:01:40.6]} 30. fxe5 {[%clk 0:00:30.8]}
30... fxe5 {[%clk 0:01:40.2]} 31. Ra1 {[%clk 0:00:28.3]} 31... Ba6 {[%clk
0:01:38.1]} 32. Ra3 {[%clk 0:00:27.5]} 32... e4 {[%clk 0:01:36.9]} 33. Rg3
{[%clk 0:00:27]} 33... e3+ {[%clk 0:01:33.6]} 34. Kc1 {[%clk 0:00:25.9]} 34...
e2 {[%clk 0:01:28.8]} 35. Kd2 {[%clk 0:00:25.1]} 35... Rb1 {[%clk 0:01:25.7]}
0-1

[Event "Late-Titled-Tuesday-Blitz-September-12-2023"]
[Site "Chess.com"]
[Date "2023.09.12"]
[Round "6"]
[White "canary2016"]
[Black "RCone"]
[Result "0-1"]
[WhiteElo "2087"]
[BlackElo "2323"]
[TimeControl "180+1"]
[EndTime "15:02:36 PDT"]
[Termination "RCone won on time"]

1. e4 {[%clk 0:03:00.7]} 1... d6 {[%clk 0:02:53.2]} 2. Nf3 {[%clk 0:02:59.4]}
2... Nf6 {[%clk 0:02:53.6]} 3. Nc3 {[%clk 0:02:58.9]} 3... g6 {[%clk 0:02:54]}
4. Bc4 {[%clk 0:02:58.3]} 4... Bg7 {[%clk 0:02:54.5]} 5. O-O {[%clk 0:02:58.4]}
5... O-O {[%clk 0:02:53.9]} 6. d4 {[%clk 0:02:58.6]} 6... Bg4 {[%clk 0:02:52.1]}
7. h3 {[%clk 0:02:57.6]} 7... Bxf3 {[%clk 0:02:42.2]} 8. Qxf3 {[%clk 0:02:57.4]}
8... Nc6 {[%clk 0:02:43.1]} 9. Be3 {[%clk 0:02:56.8]} 9... e5 {[%clk 0:02:43]}
10. d5 {[%clk 0:02:55.2]} 10... Ne7 {[%clk 0:02:41.9]} 11. Bg5 {[%clk
0:02:51.2]} 11... Nd7 {[%clk 0:02:41.2]} 12. Qe2 {[%clk 0:02:48]} 12... f6
{[%clk 0:02:40.6]} 13. Be3 {[%clk 0:02:46]} 13... f5 {[%clk 0:02:40.6]} 14. f4
{[%clk 0:02:45.9]} 14... fxe4 {[%clk 0:02:35.1]} 15. Nxe4 {[%clk 0:02:43]} 15...
Nf5 {[%clk 0:02:35.3]} 16. Ng5 {[%clk 0:02:35.3]} 16... Ng3 {[%clk 0:02:33.5]}
17. Qe1 {[%clk 0:02:27.9]} 17... Nxf1 {[%clk 0:02:32.9]} 18. Ne6 {[%clk
0:02:25.1]} 18... Qe7 {[%clk 0:02:32.2]} 19. Nxf8 {[%clk 0:02:12.7]} 19... Nxe3
{[%clk 0:02:29.3]} 20. fxe5 {[%clk 0:01:50.7]} 20... Nxe5 {[%clk 0:02:17.9]} 21.
Qxe3 {[%clk 0:01:28.1]} 21... Rxf8 {[%clk 0:02:16.5]} 22. Re1 {[%clk 0:01:26.5]}
22... Qh4 {[%clk 0:01:43.9]} 23. Be2 {[%clk 0:00:53.7]} 23... Bh6 {[%clk
0:01:42.5]} 24. Qc3 {[%clk 0:00:42.9]} 24... Bf4 {[%clk 0:01:37.3]} 25. Rf1
{[%clk 0:00:38.1]} 25... Qg3 {[%clk 0:01:35.8]} 26. Qxg3 {[%clk 0:00:24.2]}
26... Bxg3 {[%clk 0:01:36.7]} 27. Rd1 {[%clk 0:00:21.7]} 27... Bf2+ {[%clk
0:01:33.3]} 28. Kh2 {[%clk 0:00:20.9]} 28... Be3 {[%clk 0:01:33]} 29. Bb5 {[%clk
0:00:18.3]} 29... Rf2 {[%clk 0:01:30.9]} 30. Kg3 {[%clk 0:00:13.2]} 30... Rxc2
{[%clk 0:01:29.6]} 31. a4 {[%clk 0:00:03.6]} 31... Rxb2 {[%clk 0:01:28.2]} 0-1

[Event "Late-Titled-Tuesday-Blitz-September-12-2023"]
[Site "Chess.com"]
[Date "2023.09.12"]
[Round "6"]
[White "EnvigadoCity"]
[Black "IMGC"]
[Result "0-1"]
[WhiteElo "2092"]
[BlackElo "2421"]
[TimeControl "180+1"]
[EndTime "15:02:48 PDT"]
[Termination "IMGC won by resignation"]

1. d4 {[%clk 0:03:00.9]} 1... Nf6 {[%clk 0:02:59.2]} 2. c4 {[%clk 0:03:01.2]}
2... g6 {[%clk 0:02:58.8]} 3. Nc3 {[%clk 0:03:01.7]} 3... Bg7 {[%clk 0:02:59.4]}
4. e4 {[%clk 0:03:01.9]} 4... O-O {[%clk 0:02:59.8]} 5. Nf3 {[%clk 0:03:02.5]}
5... d6 {[%clk 0:03:00.3]} 6. Be2 {[%clk 0:03:03]} 6... c5 {[%clk 0:03:00.9]} 7.
dxc5 {[%clk 0:03:01.5]} 7... dxc5 {[%clk 0:02:55.4]} 8. O-O {[%clk 0:02:51.9]}
8... Nc6 {[%clk 0:02:53.1]} 9. e5 {[%clk 0:02:42.5]} 9... Ng4 {[%clk 0:02:49.5]}
10. Ne4 {[%clk 0:02:21.2]} 10... b6 {[%clk 0:02:43.7]} 11. Qa4 {[%clk
0:02:01.6]} 11... Ngxe5 {[%clk 0:02:38.8]} 12. Rd1 {[%clk 0:01:59.5]} 12... Qc7
{[%clk 0:02:04.3]} 13. Nc3 {[%clk 0:01:57.3]} 13... Bd7 {[%clk 0:01:43]} 14. Nd5
{[%clk 0:01:50]} 14... Qd8 {[%clk 0:01:41.4]} 15. Bg5 {[%clk 0:01:48.8]} 15...
f6 {[%clk 0:01:23.3]} 16. Bf4 {[%clk 0:01:47.4]} 16... Nxf3+ {[%clk 0:01:19.7]}
17. Bxf3 {[%clk 0:01:44.8]} 17... Nd4 {[%clk 0:01:20.2]} 18. Qa3 {[%clk
0:01:36]} 18... e5 {[%clk 0:01:01.1]} 19. Bd2 {[%clk 0:01:26.2]} 19... Bc6
{[%clk 0:01:00.6]} 20. Qc3 {[%clk 0:01:18.8]} 20... e4 {[%clk 0:00:55.6]} 21.
Be3 {[%clk 0:01:03.5]} 21... f5 {[%clk 0:00:53.7]} 22. Bxd4 {[%clk 0:00:58.3]}
22... cxd4 {[%clk 0:00:53.2]} 23. Qa3 {[%clk 0:00:54.4]} 23... Bxd5 {[%clk
0:00:51.9]} 24. cxd5 {[%clk 0:00:54.5]} 24... exf3 {[%clk 0:00:52.2]} 25. gxf3
{[%clk 0:00:54.8]} 25... Qxd5 {[%clk 0:00:51.2]} 26. b4 {[%clk 0:00:53.5]} 26...
Rad8 {[%clk 0:00:47.1]} 27. b5 {[%clk 0:00:54]} 27... d3 {[%clk 0:00:46.6]} 28.
Qxa7 {[%clk 0:00:52.8]} 28... Bxa1 {[%clk 0:00:44.8]} 29. Rxa1 {[%clk
0:00:49.8]} 29... d2 {[%clk 0:00:44]} 30. Rd1 {[%clk 0:00:47.6]} 30... Qxf3
{[%clk 0:00:44.5]} 31. Qa4 {[%clk 0:00:47.9]} 31... Rfe8 {[%clk 0:00:37]} 32.
Qb3+ {[%clk 0:00:47]} 32... Qxb3 {[%clk 0:00:35.3]} 33. axb3 {[%clk 0:00:47.9]}
33... Re1+ {[%clk 0:00:34.8]} 0-1

[Event "Late-Titled-Tuesday-Blitz-September-12-2023"]
[Site "Chess.com"]
[Date "2023.09.12"]
[Round "6"]
[White "ARTHURMOTIVATOR"]
[Black "Dewarfd"]
[Result "1-0"]
[WhiteElo "2358"]
[BlackElo "2197"]
[TimeControl "180+1"]
[EndTime "15:02:52 PDT"]
[Termination "ARTHURMOTIVATOR won on time"]

1. e4 {[%clk 0:02:53.3]} 1... e5 {[%clk 0:02:59.3]} 2. Nf3 {[%clk 0:02:45.8]}
2... Nc6 {[%clk 0:02:58.4]} 3. d4 {[%clk 0:02:46.5]} 3... exd4 {[%clk 0:02:58]}
4. Nxd4 {[%clk 0:02:47.4]} 4... Nf6 {[%clk 0:02:56.5]} 5. Nxc6 {[%clk
0:02:46.6]} 5... bxc6 {[%clk 0:02:56.2]} 6. Bd3 {[%clk 0:02:47.5]} 6... Be7
{[%clk 0:02:56.2]} 7. e5 {[%clk 0:02:44.2]} 7... Nd5 {[%clk 0:02:55.6]} 8. O-O
{[%clk 0:02:44.7]} 8... O-O {[%clk 0:02:49.6]} 9. f4 {[%clk 0:02:40.4]} 9... Nb4
{[%clk 0:02:45.9]} 10. Be4 {[%clk 0:02:33.5]} 10... d5 {[%clk 0:02:43.3]} 11.
exd6 {[%clk 0:02:26.5]} 11... cxd6 {[%clk 0:02:41.5]} 12. a3 {[%clk 0:02:18.4]}
12... d5 {[%clk 0:02:30.7]} 13. Bxh7+ {[%clk 0:02:04.2]} 13... Kxh7 {[%clk
0:02:31.1]} 14. axb4 {[%clk 0:02:04.8]} 14... Bxb4 {[%clk 0:02:25.5]} 15. f5
{[%clk 0:01:59.5]} 15... Qf6 {[%clk 0:02:20.1]} 16. Qh5+ {[%clk 0:01:57.2]}
16... Kg8 {[%clk 0:02:19.3]} 17. Bg5 {[%clk 0:01:52.1]} 17... Qd4+ {[%clk
0:02:02]} 18. Kh1 {[%clk 0:01:50.4]} 18... Bxf5 {[%clk 0:02:01.5]} 19. c3 {[%clk
0:01:18.1]} 19... Qd3 {[%clk 0:00:59.3]} 20. Nd2 {[%clk 0:01:14.3]} 20... Bg6
{[%clk 0:00:50.4]} 21. Qh4 {[%clk 0:01:13.5]} 21... Bc5 {[%clk 0:00:38.9]} 22.
Rf3 {[%clk 0:01:11.6]} 22... Qc2 {[%clk 0:00:33.8]} 23. Raf1 {[%clk 0:00:52.7]}
1-0

[Event "Late-Titled-Tuesday-Blitz-September-12-2023"]
[Site "Chess.com"]
[Date "2023.09.12"]
[Round "6"]
[White "Bauman_Guy"]
[Black "RETURNOFTHELAGGER"]
[Result "1-0"]
[WhiteElo "2907"]
[BlackElo "2647"]
[TimeControl "180+1"]
[EndTime "15:02:55 PDT"]
[Termination "Bauman_Guy won by resignation"]

1. e4 {[%clk 0:03:00.9]} 1... c5 {[%clk 0:02:52.5]} 2. Nf3 {[%clk 0:03:00.8]}
2... d6 {[%clk 0:02:52.8]} 3. d4 {[%clk 0:03:01.3]} 3... cxd4 {[%clk 0:02:53.7]}
4. Nxd4 {[%clk 0:03:02.2]} 4... Nf6 {[%clk 0:02:53.7]} 5. Nc3 {[%clk 0:03:02.9]}
5... a6 {[%clk 0:02:54.6]} 6. h3 {[%clk 0:03:03.2]} 6... e5 {[%clk 0:02:49.7]}
7. Nde2 {[%clk 0:03:03.3]} 7... h5 {[%clk 0:02:50.6]} 8. Bg5 {[%clk 0:03:03.3]}
8... Be6 {[%clk 0:02:38.3]} 9. Nc1 {[%clk 0:03:02.9]} 9... Be7 {[%clk
0:02:36.2]} 10. Nb3 {[%clk 0:03:02.3]} 10... Nbd7 {[%clk 0:02:36.4]} 11. Be2
{[%clk 0:03:02.2]} 11... g6 {[%clk 0:02:34.1]} 12. O-O {[%clk 0:03:01.8]} 12...
O-O {[%clk 0:02:33.9]} 13. Kh1 {[%clk 0:03:00.7]} 13... Rc8 {[%clk 0:02:33.6]}
14. f4 {[%clk 0:02:56.9]} 14... exf4 {[%clk 0:02:32.7]} 15. Bxf4 {[%clk
0:02:56.4]} 15... b5 {[%clk 0:02:28.2]} 16. Bxd6 {[%clk 0:02:48.1]} 16... b4
{[%clk 0:02:15.4]} 17. Bxe7 {[%clk 0:02:13.6]} 17... Qxe7 {[%clk 0:02:16.3]} 18.
Nd5 {[%clk 0:02:13.9]} 18... Bxd5 {[%clk 0:02:12]} 19. exd5 {[%clk 0:02:13.4]}
19... Qd6 {[%clk 0:01:54.2]} 20. Bf3 {[%clk 0:02:05.2]} 20... Ne5 {[%clk
0:01:53.5]} 21. a3 {[%clk 0:02:01.5]} 21... bxa3 {[%clk 0:01:49.6]} 22. Rxa3
{[%clk 0:02:01.3]} 22... Nc4 {[%clk 0:01:46.9]} 23. Qd4 {[%clk 0:01:29.4]} 23...
Nxa3 {[%clk 0:01:43.9]} 24. bxa3 {[%clk 0:01:30.3]} 24... Rxc2 {[%clk
0:01:38.5]} 25. Bd1 {[%clk 0:01:28.8]} 25... Ra2 {[%clk 0:01:22.1]} 26. Qxf6
{[%clk 0:00:43.6]} 26... Qxd5 {[%clk 0:01:21.3]} 27. Qf3 {[%clk 0:00:43.6]}
27... Qd6 {[%clk 0:01:09]} 28. a4 {[%clk 0:00:30.8]} 28... Rxa4 {[%clk
0:01:07.4]} 29. Nc5 {[%clk 0:00:27.2]} 29... Qxc5 {[%clk 0:01:05.5]} 30. Bxa4
{[%clk 0:00:26.7]} 30... a5 {[%clk 0:01:01.1]} 31. Bb3 {[%clk 0:00:26.7]} 31...
Qc7 {[%clk 0:00:57.9]} 32. Qf6 {[%clk 0:00:25.9]} 32... Kh7 {[%clk 0:00:53.1]}
33. Bxf7 {[%clk 0:00:25.5]} 1-0

[Event "Late-Titled-Tuesday-Blitz-September-12-2023"]
[Site "Chess.com"]
[Date "2023.09.12"]
[Round "6"]
[White "Fandorine"]
[Black "adiosabu"]
[Result "1-0"]
[WhiteElo "2897"]
[BlackElo "2595"]
[TimeControl "180+1"]
[EndTime "15:03:00 PDT"]
[Termination "Fandorine won by resignation"]

1. e4 {[%clk 0:03:00.9]} 1... c5 {[%clk 0:02:58.2]} 2. Nf3 {[%clk 0:02:55.6]}
2... Nc6 {[%clk 0:02:58.7]} 3. Nc3 {[%clk 0:02:53.5]} 3... e6 {[%clk 0:02:57]}
4. Bb5 {[%clk 0:02:52.2]} 4... Nd4 {[%clk 0:02:50.6]} 5. O-O {[%clk 0:02:51.8]}
5... Nxb5 {[%clk 0:02:39.3]} 6. Nxb5 {[%clk 0:02:52]} 6... a6 {[%clk 0:02:39.5]}
7. Nc3 {[%clk 0:02:52.6]} 7... d6 {[%clk 0:02:39.6]} 8. d4 {[%clk 0:02:49.6]}
8... cxd4 {[%clk 0:02:40.5]} 9. Qxd4 {[%clk 0:02:48.2]} 9... Nf6 {[%clk
0:02:40.2]} 10. Bg5 {[%clk 0:02:41.3]} 10... Be7 {[%clk 0:02:40.7]} 11. Rfd1
{[%clk 0:02:40]} 11... b5 {[%clk 0:01:57.8]} 12. a4 {[%clk 0:02:26.5]} 12... e5
{[%clk 0:01:47.5]} 13. Qd3 {[%clk 0:02:11.1]} 13... bxa4 {[%clk 0:01:34.4]} 14.
Rxa4 {[%clk 0:02:06.9]} 14... Rb8 {[%clk 0:01:17.6]} 15. b3 {[%clk 0:02:01.8]}
15... Bb7 {[%clk 0:01:08.6]} 16. Bxf6 {[%clk 0:01:54.8]} 16... Bxf6 {[%clk
0:01:02.2]} 17. Nd2 {[%clk 0:01:55.1]} 17... Be7 {[%clk 0:00:57.1]} 18. Nc4
{[%clk 0:01:53.6]} 18... O-O {[%clk 0:00:45.6]} 19. Nd5 {[%clk 0:01:53.1]} 19...
Bg5 {[%clk 0:00:42.4]} 20. h3 {[%clk 0:01:50.5]} 20... g6 {[%clk 0:00:40.9]} 21.
Rb4 {[%clk 0:01:35.8]} 21... f5 {[%clk 0:00:27.5]} 22. Rb6 {[%clk 0:01:34.6]}
22... fxe4 {[%clk 0:00:20.9]} 23. Qxe4 {[%clk 0:01:35.5]} 23... Rf4 {[%clk
0:00:16.7]} 24. Qe2 {[%clk 0:01:17.1]} 24... Rd4 {[%clk 0:00:15.5]} 25. Rxd4
{[%clk 0:01:12.9]} 25... exd4 {[%clk 0:00:15.4]} 26. Qe6+ {[%clk 0:01:04.8]}
26... Kg7 {[%clk 0:00:15.6]} 27. Rxd6 {[%clk 0:01:04.5]} 27... Qf8 {[%clk
0:00:11.4]} 28. Rd7+ {[%clk 0:00:59.8]} 28... Kh6 {[%clk 0:00:11.5]} 29. Nd6
{[%clk 0:00:59.8]} 29... Bxd5 {[%clk 0:00:10.8]} 30. Qxd5 {[%clk 0:00:59.2]}
30... Rd8 {[%clk 0:00:07.4]} 31. Nf7+ {[%clk 0:00:58.6]} 1-0

[Event "Late-Titled-Tuesday-Blitz-September-12-2023"]
[Site "Chess.com"]
[Date "2023.09.12"]
[Round "6"]
[White "YellowJacek"]
[Black "miraitrunks"]
[Result "0-1"]
[WhiteElo "2309"]
[BlackElo "2130"]
[TimeControl "180+1"]
[EndTime "15:03:04 PDT"]
[Termination "miraitrunks won on time"]

1. e4 {[%clk 0:03:00]} 1... c5 {[%clk 0:02:59.8]} 2. Nf3 {[%clk 0:02:59.1]} 2...
Nc6 {[%clk 0:02:59.8]} 3. d4 {[%clk 0:02:59.2]} 3... cxd4 {[%clk 0:03:00.7]} 4.
Nxd4 {[%clk 0:02:59.6]} 4... e5 {[%clk 0:02:57.8]} 5. Nxc6 {[%clk 0:02:59.1]}
5... bxc6 {[%clk 0:02:57.6]} 6. Bc4 {[%clk 0:03:00]} 6... Nf6 {[%clk 0:02:56.6]}
7. O-O {[%clk 0:02:59.2]} 7... Bc5 {[%clk 0:02:51]} 8. Nc3 {[%clk 0:02:57.7]}
8... O-O {[%clk 0:02:50.4]} 9. Qe2 {[%clk 0:02:55.4]} 9... h6 {[%clk 0:02:49.9]}
10. Be3 {[%clk 0:02:53.2]} 10... Bxe3 {[%clk 0:02:45.2]} 11. Qxe3 {[%clk
0:02:54.1]} 11... d5 {[%clk 0:02:42.8]} 12. exd5 {[%clk 0:02:43.6]} 12... cxd5
{[%clk 0:02:43.7]} 13. Rad1 {[%clk 0:02:38.4]} 13... Ng4 {[%clk 0:02:23.4]} 14.
Qg3 {[%clk 0:02:34.4]} 14... d4 {[%clk 0:02:15.4]} 15. h3 {[%clk 0:02:06.9]}
15... Qc7 {[%clk 0:01:59.2]} 16. Bd5 {[%clk 0:02:02.5]} 16... Rb8 {[%clk
0:01:53.2]} 17. Ne4 {[%clk 0:01:51.8]} 17... Rd8 {[%clk 0:00:31.6]} 0-1

[Event "Late-Titled-Tuesday-Blitz-September-12-2023"]
[Site "Chess.com"]
[Date "2023.09.12"]
[Round "6"]
[White "laiciffOneslraCsungaM"]
[Black "lluiss"]
[Result "1-0"]
[WhiteElo "2333"]
[BlackElo "2170"]
[TimeControl "180+1"]
[EndTime "15:03:10 PDT"]
[Termination "laiciffOneslraCsungaM won by resignation"]

1. d4 {[%clk 0:03:00.9]} 1... Nf6 {[%clk 0:02:59.4]} 2. Bf4 {[%clk 0:03:00.3]}
2... g6 {[%clk 0:02:59.6]} 3. Nf3 {[%clk 0:02:54.6]} 3... Bg7 {[%clk 0:03:00]}
4. e3 {[%clk 0:02:53.3]} 4... O-O {[%clk 0:02:59.9]} 5. Be2 {[%clk 0:02:52.7]}
5... b6 {[%clk 0:02:59.4]} 6. h3 {[%clk 0:02:39.9]} 6... Bb7 {[%clk 0:02:59.2]}
7. O-O {[%clk 0:02:40.2]} 7... d5 {[%clk 0:02:57.4]} 8. Nbd2 {[%clk 0:02:19]}
8... c5 {[%clk 0:02:56.9]} 9. c3 {[%clk 0:02:18.4]} 9... Nc6 {[%clk 0:02:56.9]}
10. Ne5 {[%clk 0:02:17.5]} 10... Nd7 {[%clk 0:02:56.9]} 11. Nxc6 {[%clk
0:02:01.9]} 11... Bxc6 {[%clk 0:02:57.8]} 12. Nf3 {[%clk 0:02:02.1]} 12... Re8
{[%clk 0:02:56]} 13. a4 {[%clk 0:01:58.1]} 13... a6 {[%clk 0:02:55.2]} 14. Re1
{[%clk 0:01:35.5]} 14... e5 {[%clk 0:02:54.9]} 15. dxe5 {[%clk 0:01:30.7]} 15...
Nxe5 {[%clk 0:02:54.5]} 16. Nxe5 {[%clk 0:01:30.2]} 16... Bxe5 {[%clk
0:02:53.8]} 17. Bxe5 {[%clk 0:01:31.1]} 17... Rxe5 {[%clk 0:02:53.8]} 18. Bf3
{[%clk 0:01:32]} 18... Qc7 {[%clk 0:02:44.7]} 19. Qe2 {[%clk 0:01:29.3]} 19...
Rae8 {[%clk 0:02:41.7]} 20. Qxa6 {[%clk 0:01:28.1]} 20... d4 {[%clk 0:02:31.3]}
21. Bxc6 {[%clk 0:01:26.6]} 21... Qxc6 {[%clk 0:02:30.6]} 22. cxd4 {[%clk
0:01:26.8]} 22... cxd4 {[%clk 0:02:30.1]} 23. Rec1 {[%clk 0:01:26.8]} 23... Qd6
{[%clk 0:02:21.2]} 24. Rd1 {[%clk 0:01:19.9]} 24... Rd5 {[%clk 0:02:14.9]} 25.
Rxd4 {[%clk 0:01:12.9]} 25... Rxd4 {[%clk 0:02:15]} 26. exd4 {[%clk 0:01:13.8]}
26... Qxd4 {[%clk 0:02:15.3]} 27. Qb5 {[%clk 0:01:01.9]} 27... Re5 {[%clk
0:02:13.5]} 28. Qc6 {[%clk 0:00:48.8]} 28... Rc5 {[%clk 0:01:47.1]} 29. Qe8+
{[%clk 0:00:44.9]} 29... Kg7 {[%clk 0:01:47.1]} 30. Qe2 {[%clk 0:00:39.6]} 30...
Re5 {[%clk 0:01:21.1]} 31. Qc2 {[%clk 0:00:35.3]} 31... Rc5 {[%clk 0:01:15.9]}
32. Qb3 {[%clk 0:00:35.6]} 32... Rc4 {[%clk 0:01:04.6]} 33. Rd1 {[%clk
0:00:25.6]} 33... Qc5 {[%clk 0:01:04.3]} 34. g3 {[%clk 0:00:20.7]} 34... Rc2
{[%clk 0:01:00.1]} 35. Rf1 {[%clk 0:00:17.8]} 35... Qd4 {[%clk 0:00:52.7]} 36.
Qxc2 {[%clk 0:00:16.8]} 1-0

[Event "Late-Titled-Tuesday-Blitz-September-12-2023"]
[Site "Chess.com"]
[Date "2023.09.12"]
[Round "6"]
[White "RichardLeyvaP"]
[Black "szachmistrz2500"]
[Result "1-0"]
[WhiteElo "2616"]
[BlackElo "2458"]
[TimeControl "180+1"]
[EndTime "15:03:15 PDT"]
[Termination "RichardLeyvaP won by resignation"]

1. e4 {[%clk 0:02:59.8]} 1... c5 {[%clk 0:02:59.4]} 2. Nf3 {[%clk 0:02:59.4]}
2... d6 {[%clk 0:02:59.6]} 3. d4 {[%clk 0:02:59.7]} 3... cxd4 {[%clk 0:03:00.5]}
4. Nxd4 {[%clk 0:02:59.1]} 4... Nf6 {[%clk 0:03:01]} 5. Nc3 {[%clk 0:02:59.7]}
5... a6 {[%clk 0:03:00.9]} 6. Bc4 {[%clk 0:02:59.9]} 6... e6 {[%clk 0:02:55.3]}
7. Bb3 {[%clk 0:03:00.2]} 7... Nbd7 {[%clk 0:02:53.6]} 8. Bg5 {[%clk 0:02:58.8]}
8... Nc5 {[%clk 0:02:52.5]} 9. Qd2 {[%clk 0:02:58.1]} 9... Be7 {[%clk
0:02:50.5]} 10. Bxf6 {[%clk 0:02:55.4]} 10... Bxf6 {[%clk 0:02:49.9]} 11. O-O-O
{[%clk 0:02:56.3]} 11... O-O {[%clk 0:02:35.3]} 12. Kb1 {[%clk 0:02:55.6]} 12...
Qc7 {[%clk 0:02:29.9]} 13. f4 {[%clk 0:02:55.7]} 13... b5 {[%clk 0:02:25.1]} 14.
a3 {[%clk 0:02:55.7]} 14... Bb7 {[%clk 0:02:22.8]} 15. Rhe1 {[%clk 0:02:55.4]}
15... Nxb3 {[%clk 0:02:21.7]} 16. cxb3 {[%clk 0:02:49.6]} 16... Rfd8 {[%clk
0:02:10.7]} 17. g4 {[%clk 0:02:46]} 17... Qb6 {[%clk 0:02:06.3]} 18. b4 {[%clk
0:02:42.6]} 18... Rac8 {[%clk 0:01:53.9]} 19. g5 {[%clk 0:02:42.2]} 19... Be7
{[%clk 0:01:51.5]} 20. f5 {[%clk 0:02:38]} 20... e5 {[%clk 0:01:35]} 21. Nb3
{[%clk 0:02:25]} 21... Bf8 {[%clk 0:01:25.1]} 22. f6 {[%clk 0:02:22.6]} 22...
Rc4 {[%clk 0:01:18.8]} 23. fxg7 {[%clk 0:02:17]} 23... Bxg7 {[%clk 0:01:17.4]}
24. Rf1 {[%clk 0:02:03.1]} 24... d5 {[%clk 0:01:08.2]} 25. Nxd5 {[%clk
0:01:50.4]} 25... Bxd5 {[%clk 0:01:04.3]} 26. exd5 {[%clk 0:01:51.3]} 26... e4
{[%clk 0:01:03.9]} 27. Qf4 {[%clk 0:01:44.8]} 27... Qg6 {[%clk 0:01:02.5]} 28.
Qf5 {[%clk 0:01:31.5]} 28... e3 {[%clk 0:00:52.6]} 29. Qxg6 {[%clk 0:01:30]}
29... hxg6 {[%clk 0:00:52.5]} 30. Rfe1 {[%clk 0:01:29.3]} 30... Rh4 {[%clk
0:00:44.6]} 31. Re2 {[%clk 0:01:20.5]} 31... Rh5 {[%clk 0:00:42.9]} 32. d6
{[%clk 0:01:14.9]} 32... Rxg5 {[%clk 0:00:40.4]} 33. d7 {[%clk 0:01:02.2]} 33...
Re5 {[%clk 0:00:34.2]} 34. Nc5 {[%clk 0:00:53.9]} 34... Re7 {[%clk 0:00:34]} 35.
Rd3 {[%clk 0:00:53.2]} 35... f5 {[%clk 0:00:33]} 36. Rdxe3 {[%clk 0:00:52.8]}
36... Rxe3 {[%clk 0:00:28.9]} 37. Rxe3 {[%clk 0:00:53.7]} 37... Kf7 {[%clk
0:00:29.3]} 38. Rd3 {[%clk 0:00:49.4]} 38... Be5 {[%clk 0:00:28.4]} 39. Nb7
{[%clk 0:00:48.3]} 1-0